{"text_format":"1","workbook":"xlsx","n_sheets":6,"sheets":["児童館事業年間活動報告書10-1雛型","児童館事業年間活動報告書10-２雛型","児童館事業年間活動報告書10-３雛型","児童館事業年間活動報告書10-４","児童館事業年間活動報告書10-５雛型","ファイル一覧"],"not_rendered":{"charts":0,"images":0,"macros":1,"external_links":0,"defined_names":4,"comments":0,"pivot_tables":0},"unopened":[],"bounds":{"document_bytes":16777216,"sheet_cells":100000,"rows_first":2000,"rows_last":500,"rows_between":2000,"halvings":0,"cell_chars":16384,"cell_head_chars":4096},"cells_cut":0,"cells_raw":0,"read":"whole","date_system":"1900"}

{"sheet":"児童館事業年間活動報告書10-1雛型","index":0,"n_rows":35,"n_cols":17,"rows_kept":35,"cut":false,"hidden":false,"merged":[[29,13,30,13],[29,10,30,10],[29,14,30,14],[29,11,30,11],[29,12,30,12],[29,8,30,8],[29,7,30,7],[29,9,30,9],[5,0,30,0],[5,1,30,1],[29,2,30,2],[29,3,30,3],[29,5,30,5],[29,4,30,4],[29,6,30,6],[1,3,1,6],[3,11,3,13],[2,4,2,14],[2,0,4,1],[3,4,4,4],[3,9,4,9],[3,10,4,10],[3,14,4,14],[3,7,3,8],[3,5,3,6]]}
[null,null,null,null,null,null,null,null,null,null,null,null,null,null,null,null,"＜様式１０－１＞"]
[null,null,null,"令和7 (2025) 年度",null,null,null,"児　童　館　事　業　年　間　活　動　報　告　書",null,null,null,null,null,null,null,null,"藤森竹田児童館"]
[null,null,null,null,"参　　　　加　　　　人　　　　数"]
[null,null,"活動名","実施回数","乳幼児","小１～３年",null,"小４～６年",null,"中高生","大人","ボランティア",null,null,"合計","内　　　　　　　　　　　　　　　容","成　果　と　課　題"]
[null,null,null,null,null,"自由来館","学童クラブ","自由来館","学童クラブ",null,null,"中高生","大学生","大人"]
["　　　　子　　ど　　も　　育　　成　　機　　能","基　　　　本　　　　活　　　　動","菜園活動",11,0,0,72,1,25,0,0,0,0,0,{"$f":"SUM(E6:N6)","v":98},"児童館周辺の花壇の手入れや、庭の草むしり。雨天時はエコ工作を実施する。","毎回多くの子どもが活動に参加し、毎月楽しみにしてくれている子どももいる。"]
[null,null,"避難訓練",10,0,3,170,5,46,0,0,0,0,0,{"$f":"SUM(E7:N7)","v":224},"毎月実施し、火災・地震・水害などを想定して避難をしている。","毎月実施することで、子どもの意識も高く、避難も素早い。"]
[null,null,"みんなであそぼう",3,0,3,23,1,12,0,0,0,0,0,{"$f":"SUM(E8:N8)","v":39},"児童館に来ているみんなでできるゲームを開催した。","みんなで一緒に遊ぶことを楽しんでくれており、普段の遊びとは違う楽しさを感じてもらえた。"]
[null,null,"学童クラブのお友だちとおやつを食べよう",15,0,17,0,9,0,0,0,0,0,0,26,"学童クラブのおやつの時間に合わせて自由来館者もおやつを食べてもらう時間を設けた","自由来館者で遊びに来た人もおやつを持参し、一緒の部屋で食べられることを喜んでいた。"]
[null,null,"まちたんけんクラブ",5,0,9,14,10,18,0,0,0,0,0,51,"館外活動を中心としたクラブ活動を実施した。","館外にお出かけする機会を得ることができ、子どもたちに普段とは違う体験をしてもらうことができた。"]
[null,null,"チャレンジクラブ",7,0,18,40,8,22,0,0,0,0,0,88,"児童館の室内でできる、いろんなチャレンジに挑戦するクラブ活動を実施した。","カサや、衣類など、生活にちなんだ体験から、遊びだけでなく生活の学びにもなった。"]
[null,null,"たこせんをたべよう",1,1,2,11,1,6,0,0,0,0,0,21,"来館しているみんなで、玄関前でたこせんを食べながら交流をした。","普段のおやつとは違い、玄関でみんなで顔を合わせながら食べる体験に、子どもたちの笑顔を見ることができた。"]
[null,null,"しゃぼん玉あそび",1,0,3,12,2,4,0,0,0,0,0,21,"シャボン玉を用意し、学年を問わずみんなで楽しんでもらう。","玄関前で、1年生から高学年まで一緒に遊ぶ。遊んだ後は、高学年は進んでお片付けまで手伝ってくれた。"]
[null,null,"ウェーブ21",3,0,6,40,2,12,0,null,0,0,19,79,"NPO法人ウェーブ21の方々に、子どもたちに向けて１年通して様々な事業を実施していただいた。","サイエンスや化学遊び、将棋教室など、子どもが楽しみそうな企画を考えて下さり、子どもたちも喜んでいる。"]
[null,null,"笹飾りを作ろう",1,0,1,13,1,5,0,0,0,0,0,20,"玄関前に飾る笹と、高齢者施設「城南ホーム」さんお届けする笹の飾りを子どもたちに作成してもらう。","笹の飾りつけに使用したいことを伝えると、多くの子どもたちがたくさんの飾りを作ってくれた。"]
[null,null,"笹の飾りつけ",1,0,0,11,0,4,0,0,0,0,0,15,"笹の飾りつけを行う。","七夕の笹がかわいらしくなるよう、事前に作ってもらった飾りで装飾してもらった。"]
[null,null,"体育館あそび",3,0,0,143,4,39,0,0,0,0,0,186,"伏見北部地域体育館で運動遊びを実施。","ドッチボール等の身体を動かす遊びを実施。学年ごとにできる遊びを変えながら行った。"]
[null,null,"夏休み特別企画『お化け屋敷に行こう』",1,0,0,3,0,6,0,0,0,0,0,9,"比叡山のお化け屋敷が復活。参加者を募り、児童館で参加した。","京都で有名だったお化け屋敷が復活し、子どもたちにも体験してもらった。お化けにドキドキしつつ、夏の風物詩を楽しんでもらった。"]
[null,null,"ふじたけサマーフェス",1,0,2,52,6,13,1,8,0,0,0,82,"プログラムを作成し、時間で様々な遊びコーナーやゲームを展開して行なった。また、子どもたちに学校の先生へ招待状を書いてもらい、お渡しした。","時間ごとにコーナーを展開し、空いている時間内で子どもたちには遊びに行くように伝えたため、混雑緩和ができた。学校の先生も参加してくださる方が多かった。館内全体を使ったゲームもしたため、子どもたちは暑さをしのぎながらも体全体を使って遊ぶことができた。"]
[null,null,"おやつマーケット",1,8,0,23,0,6,1,15,0,0,0,53,"学童クラブで実施している「おやつマーケット」を体験してもらった。","学童クラブの子どもたちが普段参加している「おやつマーケット」を午前中の時間に開催し、体験してもらった。"]
[null,null,"100円分のおやつを持って来よう",3,0,0,34,1,10,0,0,0,0,0,45,"各自で約100円になるようにお買い物をして、おやつの時間にみんなで食べた","それぞれが購入してきたおやつを見せ合うなどして、おやつの時間に交流を楽しんだ。"]
[null,null,"なかよしマーケット工作",10,0,0,90,3,27,0,0,0,0,0,120,"近隣の5つの児童館共催で行っている“なかよしマーケット”の商品の10商品を、夏休み頃から少しずつ子ども達主体で作ってもらった。","「なかよしマーケット」にて各児童館で交換するための商品を作ることを楽しんでもらった。学年により工作の内容をどこまで作成してもらうかが課題。"]
[null,null,"なかよしマーケット(問屋さん）",1,0,0,6,0,47,0,12,0,0,0,65,"各児童館で作成した商品を伏見地域北部体育館に持ち寄り、仕入れを行なう。","各児童館で作った工作を各館に持ち帰る為の問屋さんを実施。各館高学年中心に代表の10名程が集り、レクレーションや昼食を通して他館のお友達との交流も深めることができた。仕入れ本番でも代表のメンバーは生き生きと責任感を持ちながら買い物を楽しんでくれていた。"]
[null,null,"プチおやつマーケット",1,0,3,12,1,3,0,0,0,0,0,19,"「おやつマーケット」をプチバージョンで小さく実施した","チケットをアイススティックに変え、２つ選んでもらう形で実施した。"]
[null,null,"ハロウィンを楽しもう",1,8,20,20,8,4,0,10,0,0,0,70,"各自ハロウィンの仮装してもしなくてもOKとし、パレードをして保育所、いきいき市民活動センター、地域体育館の3ヶ所の施設にご協力いただきお菓子を渡してもらう。児童館では、簡単なみんな遊びをし、その後はバイキング形式のおやつタイムを楽しんだ。帰りの際には投票形式のアンケートも実施した。","保育所といきいき市民活動センター、地域体育館の3か所の施設にお菓子を受け取りに道中をパレードした。パレードをするにあたり、安全面を考慮し、ルートを変更した。年々人数が増え、子どもたち・保護者も楽しみにしている。"]
[null,null,"ふじたけフェス",1,5,5,9,1,3,0,21,0,0,4,48,"様々なコーナー遊びに参加し、全コーナーを回って「うまい棒ビンゴ」に挑戦してもらった","OPには和音さんに演奏してもらい、ウェーブ21の方々にも協力してもらい、ながらコーナーを展開し、フェスを実施した。"]
[null,null,"デザート作り",1,0,2,16,2,1,0,0,0,0,0,21,"ドーナツを購入し、ホイップクリームやチョコなどでトッピングを楽しんだ","それぞれにトッピングをしたり、ピンで飾りつけ、楽しんだ後はおやつを食べた。"]
[null,null,"大掃除",1,0,0,42,0,6,0,0,0,0,0,48,"年末に１年間使用した児童館の掃除を行なう。","学年で掃除する場所を分担して行なった。早く終わった場合は、他の場所をお手伝いするようにお願いしていたため、大変そうな場所を子どもたち自ら見つけて手伝ってくれた。お便りで広報していたが、当日ぞうきんの忘れ物が多かったため、前日等に再度周知する必要があった。"]
[null,null,"新年お楽しみくじ",1,0,0,36,0,8,0,0,0,0,0,{"$f":"SUM(E29:N29)","v":44},"新しい年におみくじを楽しんでもらう。運勢に合わせたうまい棒も用意した。","おみくじだけでなく、うまい棒がもらえることで子どもたちも大いに盛り上がった。"]
[null,null,"合　　　　計",{"$f":"SUM(D6:D29)","v":84},22,94,892,66,327,2,66,0,0,23,1492]
[]
[]
["＊注　基本活動は，指針に基づき(２)遊びの教室活動(３)行事活動(４)クラブ活動(５)地域間交流促進活動(６)障害のある児童の居場所づくりと活動への参加促進(７)思春期児童の活動支援に分類して記入すること。"]
["　　　推進活動は，指針に基づき(９)地域を知る活動(１０)移動児童館活動に分類して記入すること。"]
["　　　指定活動は，指定児童館のみ別途報告すること。"]

{"sheet":"児童館事業年間活動報告書10-２雛型","index":1,"n_rows":41,"n_cols":21,"rows_kept":41,"cut":false,"hidden":false,"merged":[[3,19,3,20],[3,7,3,8],[12,5,13,5],[3,14,4,14],[12,8,13,8],[12,9,13,9],[12,10,13,10],[3,15,3,18],[12,11,13,11],[12,12,13,12],[11,15,11,18],[5,19,5,20],[6,19,6,20],[7,19,7,20],[8,19,8,20],[9,19,9,20],[5,0,38,0],[2,0,4,1],[2,4,2,14],[3,4,4,4],[3,5,3,6],[3,9,4,9],[3,10,4,10],[3,11,3,13],[12,4,13,4],[25,13,26,15],[25,11,26,11],[25,5,26,5],[19,3,19,4],[18,3,18,4],[14,3,15,4],[14,5,15,5],[31,1,38,1],[31,8,32,16],[24,3,24,4],[25,6,26,10],[14,11,15,11],[22,3,22,4],[5,1,30,1],[12,2,13,2],[31,6,32,7],[5,15,5,18],[6,15,6,18],[7,15,7,18],[8,15,8,18],[9,15,9,18],[10,15,10,18],[33,3,34,5],[10,19,10,20],[11,19,11,20],[20,3,20,4],[21,3,21,4],[12,6,13,6],[12,13,13,13],[12,14,13,14],[12,7,13,7],[12,3,13,3],[14,20,15,20],[16,3,16,4],[17,3,17,4],[14,17,15,19],[14,13,15,15],[14,16,15,16],[14,6,15,10],[25,3,26,4],[33,6,34,7],[33,8,34,16],[33,17,35,20],[25,17,26,19],[25,20,26,20],[31,17,32,20],[25,16,26,16],[27,18,28,20],[31,3,32,5],[27,3,28,5],[27,6,28,7],[27,8,28,14],[27,15,28,17]]}
[null,null,null,null,null,null,null,null,null,null,null,null,null,null,null,null,null,null,null,null,"＜様式１０－２＞"]
[null,null,null,"令和７年（２０２５）年度　　　　　　児　童　館　事　業　年　間　活　動　報　告　書　　　  　  　　（藤　森　竹　田）児　童　館"]
[null,null,null,null,"参　　　　加　　　　人　　　　数"]
[null,null,"活動名","実施回数","乳幼児","小１～３年",null,"小４～６年",null,"中高生","大人","ボランティア",null,null,"合計","内　　　　　　　　　　　　　　　容",null,null,null,"成　果　と　課　題"]
[null,null,null,null,null,"自由来館","学童クラブ","自由来館","学童クラブ",null,null,"中高生","大学生","大人"]
["子　　ど　　も　　家　　庭　　支　　援　　活　　動　　","基　　　　本　　　　活　　　　動","あそぼうday",66,62,0,0,0,0,0,58,0,0,0,{"$f":"SUM(E6:N6)","v":120},"毎週火曜日・金曜日の午前（10：30～11：30）と午後（13：00～14：00）に2階のお部屋で大型遊具を開放。今年はあそぼうdayの木を掲示し、遊びに来てくれた人に、果物を貼って木を実らせてもらうオプションを取り入れた。また、あそぼうdayを知っていただく為に、幼児クラブで紹介する取組も加えた。",null,null,null,"今年は参加した子どもたちに木の実を貼ってもらうことで、目に見えて「あそぼうday」に来てくれたことを感じてもらうことができた。"]
[null,null,"ランチタイム",116,0,0,0,0,0,0,0,0,0,0,{"$f":"SUM(E7:N7)","v":0},"毎週火曜日～金曜日の11：30～12：30に2階のお部屋を開放。幼児椅子を用意し、必要であれば職員に声をかけていただく形で実施。今年度は利用された方はおられなかった。",null,null,null,"ランチタイム利用の方がおらず、来年は広報に力を入れたい。"]
[null,null,"読み聞かせタイム",8,6,0,0,0,0,0,6,0,0,0,{"$f":"SUM(E8:N8)","v":12},"あそぼうdayに遊びに来てくれている親子を対象に5分～10分程度の時間で、手遊びや読み聞かせを行なう。",null,null,null,"遊びの合間に声を掛けさせてもらい、絵本を親子で楽しんでくれる姿が見られる。また、読み聞かせの後に、イベントや行事のご案内をすると、申し込みをされたり、質問をして下さるなど、保護者の方とお話をするきっかけにも繋がる。"]
[null,null,"幼児クラブ『きらきら』",28,50,0,0,null,0,0,38,0,0,0,88,"１歳以上のお子さんを対象として募集を行い、今年度は途中で退会となった家庭を含めて３組の家庭に入っていただいた。こじんまりとあたたかい雰囲気で実施することができた。",null,null,null,"幼児さんの全体数が少なくなり、今後『きらきら』の運営方法を考える必要がある。"]
[null,null,"すくすくひろば",28,230,0,0,0,0,0,235,0,0,0,465,"概ね０歳～１歳半までの乳幼児親子を対象とした登録制のひろば。まだまだ小さくて何もできない乳児さんだった子ども達が寝返りをし、つかまり立ちをし、ハイハイをしていく姿に保護者同士、職員ともに成長を感じ声を掛け合いながら取組内容もステップアップをしつつ楽しんでもらえるよう意識をした。また、保護者の方にとって為になるもの（保健師さんのお話交通安全教室など）や持ち帰って喜んでもらえる内容（フォトカード・足形）も意識して取り入れた。",null,null,null,"年々低年齢化の傾向はあるが、3ヶ月といった月齢から登録をされるくらい保護者の方のフットワークの軽さと過ごす場所を求めておられる様子を感じた。保護者の方にとっては、保護者同士が繋がれる場所を求めておられる様子も感じた為、そういった企画も考えていけたらと思う。"]
[null,null,"幼児クラブ『きらきら』\n（小学生との交流）",1,2,0,0,0,3,0,1,0,0,0,6,"夏休みに小学生と幼児さんの交流を行なった。５年生にお願いをし、玉入れを行なった。",null,null,null,"普段、幼児さんとふれあう機会がないため子どもたちも楽しそうに遊んでいくれていた。幼児さんもきょうだいで参加してくれた。"]
[null,null,"幼児クラブ合同",5,47,0,0,0,0,0,46,0,0,0,93,"来年度、１クラスにすること見通して２月のみ試行期間として水曜日・木曜日に行なった。",null,null,null,"来年度は年齢制限なしで乳幼児クラブを実施するための試行期間として実施した。"]
[null,null,"合　　　　計",{"$f":"SUM(D6:D12)","v":252},397,0,0,0,3,0,384,0,0,0,784]
[]
[null,null,null,"子どもの年齢",null,"件数","受　理　及　び　相　談　経　路",null,null,null,null,"件数",null,"相　談　内　容",null,null,"件数","つないだ機関等",null,null,"件数"]
[]
[null,null,null,"乳児",null,17,"児童館にて直接受理",null,null,null,null,null,null,"健全育成問題",null,null,null,"児童相談所"]
[null,null,null,"幼児",null,9,"児童相談所",null,null,null,null,null,null,"家庭養育問題",null,null,null,"保健所"]
[null,null,null,"小１～３年（自由来館）",null,null,"保健所",null,null,null,null,null,null,"成長･発達問題",null,null,null,"子ども支援センター"]
[null,null,"(3)子育て家庭相談・援助","小１～３年（学童）",null,12,"子ども支援センター",null,null,null,null,null,null,"教育問題",null,null,null,"幼稚園･保育園"]
[null,null,"   活動","小４～６年（自由来館）",null,null,"主任児童委員",null,null,null,null,null,null,"非行･問題行動",null,null,null,"小学校"]
[null,null,null,"小４～６年（学童）",null,null,"その他",null,null,null,null,null,null,"その他",null,null,null,"中学校"]
[null,null,null,"中学生",null,null,null,null,null,null,null,null,null,null,null,null,null,"総合支援学校"]
[null,null,null,"高校生",null,null,null,null,null,null,null,null,null,null,null,null,null,"その他"]
[]
[null,null,null,"件数　計",null,{"$f":"SUM(F17:F25)","v":38},"－",null,null,null,null,{"$f":"SUM(L17:L25)","v":0},null,"－",null,null,{"$f":"SUM(Q17:Q25)","v":0},"－",null,null,{"$f":"SUM(U17:U25)","v":0}]
[]
[null,null,null,"グループ名",null,null,"構成人数",null,"活　動　内　容",null,null,null,null,null,null,"育成・支援内容",null,null,"成果と課題"]
[]
[null,null,"(4)子育てグループを育成"]
[null,null,"   ・支援する活動"]
[null,"推進活動",null,"活動名",null,null,"実施回数",null,"活　　動　　内　　容",null,null,null,null,null,null,null,null,"成　果　と　課　題"]
[]
[null,null,null,"京都市家庭ごみ有料指定袋引換",null,null,"随時",null,"地域の子育て家庭の保護者が持参した京都市発行の無料引換券を京都市家庭ごみ有料指定袋と引き換える。",null,null,null,null,null,null,null,null,"引換に来られた保護者の方に、児童館のチラシなどを配布することができ、取組のご案内をする機会となる。その後、ほっとサロンやあそぼうdayに来て下さる方もいる。"]
[null,null,"(5)子育てと健全育成に関"]
[null,null,"   する啓発活動"]
[]
[]
[]
[]
["※注　基本活動は，指針に基づき(1)乳幼児とその保護者を対象とする活動[①乳幼児クラブ活動　②乳幼児の広場活動]（２）家族参加を促す活動に分類して記入すること。"]

{"sheet":"児童館事業年間活動報告書10-３雛型","index":2,"n_rows":47,"n_cols":19,"rows_kept":47,"cut":false,"hidden":false,"merged":[[28,11,30,18],[20,5,20,6],[4,12,5,13],[24,3,25,3],[38,2,39,2],[3,3,5,3],[3,4,5,4],[33,12,34,18],[31,9,32,9],[24,18,25,18],[24,16,25,17],[3,5,5,6],[31,6,32,6],[3,18,5,18],[4,15,5,15],[24,10,25,10],[3,16,5,17],[6,5,6,6],[7,5,7,6],[3,0,50,0],[33,3,34,3],[33,4,34,11],[4,10,4,11],[4,7,5,7],[3,1,50,1],[31,10,32,10],[31,8,32,8],[31,7,32,7],[24,9,25,9],[24,4,25,4],[35,3,37,3],[35,4,37,11],[40,3,41,3],[40,4,41,11],[8,2,12,2],[3,7,3,15],[4,14,5,14],[24,5,25,6],[4,8,4,9],[9,5,9,6],[10,5,10,6],[11,5,11,6],[12,5,12,6],[13,5,13,6],[14,5,14,6],[15,5,15,6],[16,5,16,6],[17,5,17,6],[22,5,22,6],[8,5,8,6],[19,5,19,6],[6,16,6,17],[7,16,7,17],[8,16,8,17],[9,16,9,17],[16,16,16,17],[11,16,11,17],[17,16,17,17],[19,16,19,17],[10,16,10,17],[12,16,12,17],[13,16,13,17],[14,16,14,17],[15,16,15,17],[18,16,18,17],[38,12,39,18],[28,3,30,6],[20,16,20,17],[21,16,21,17],[22,16,22,17],[24,14,25,14],[26,7,26,10],[26,11,27,18],[26,3,27,6],[24,15,25,15],[24,8,25,8],[24,7,25,7],[24,11,25,11],[21,5,21,6],[24,12,25,13],[23,16,23,17],[23,5,23,6],[18,5,18,6],[40,12,41,18],[46,3,47,3],[46,4,47,11],[46,12,47,18],[42,3,43,3],[42,4,43,11],[42,12,43,18],[44,3,45,3],[44,4,45,11],[44,12,45,18],[35,12,37,18],[38,3,39,3],[38,4,39,11]]}
[null,null,null,null,null,null,null,null,null,null,null,null,null,null,null,null,null,null,"＜様式１０－３＞"]
[null,null,null,"令和７年（２０２５）年度　　　　　　児　童　館　事　業　年　間　活　動　報　告　書　　　  　  　　（藤　森　竹　田）児　童　館"]
[]
["地　　　域　　　福　　　祉　　　促　　　進　　　機　　　能","基　　　　　　本　　　　　　活　　　　　　動",null,"活　　動　　名","実施回数","主　　催",null,"参　加　人　数",null,null,null,null,null,null,null,null,"連携団体",null,"成果と課題"]
[null,null,null,null,null,null,null,"乳幼児","小１～３年",null,"小４～６年",null,"中高生",null,"大人","合　計"]
[null,null,null,null,null,null,null,null,"自由来館","学童クラブ","自由来館","学童クラブ"]
[null,null,null,"ほっとサロン",9,"竹田学区・民生児童委員会\n京都市改進保育所\n京都市藤森竹田児童館",null,121,0,0,0,0,0,120,null,121,"竹田学区・民生児童委員会\n竹田地域女性会\n竹田更生保護女性会\n社会福祉法人清和園城南ホーム\n京都市改進保育所\n京都市伏見区社会福祉協議会",null,"各団体と連携をとり、分担をしながら準備をし、乳幼児親子さんが楽しんでもらえるような内容を準備した。"]
[null,null,null,"ネットワーク会議",9,"竹田学区・民生児童委員会\n京都市改進保育所\n京都市藤森竹田児童館",null,0,0,0,0,0,0,44,44,44,"竹田学区・民生児童委員会\n竹田地域女性会\n竹田更生保護女性会\n社会福祉法人清和園城南ホーム\n京都市改進保育所\n京都市伏見区社会福祉協議会",null,"サロン終了後、当日の子どもたちの様子や、地域の子どもたちの情報を共有しつつ、サロンの反省と先の予定について確認をする時間にしている。"]
[null,null,"(1)地域住民との交\n　流を促進する活動","おもいっきりあそぼうday",1,"京都市藤森竹田児童館",null,9,0,0,0,0,0,9,9,18,"京都市藤森竹田児童館",null,"体育館の広いスペースを使って思いっきり体を使ってあそんでもらった。"]
[null,null,null,"田中宮防災訓練",1,"田中宮市営住宅自治会",null,0,0,11,0,4,0,0,null,{"$f":"SUM(H10:O10)","v":15},"NPO法人京都子どもセンター\n（財）京都地域創造基金\n京都市伏見いきいき市民活動センター",null,"田中宮の防災訓練に参加し、起震車体験や、心肺蘇生などについても学ばせていただいた。"]
[null,null,null,"ぐんぐんひろば実行委員会",5,"竹田学区・民生児童委員会\n京都市改進保育所\n京都市竹田幼稚園\n京都市藤森竹田児童館",null,null,null,null,null,null,null,3,15,15,"竹田学区・民生児童委員会\n京都市改進保育所\n京都市竹田幼稚園\n京都市藤森竹田児童館",null,"ぐんぐんひろば当日に向けての準備や共有事項について話し合う場を設けた"]
[null,null,null,"ぐんぐんひろば",1,"竹田学区・民生児童委員会\n京都市改進保育所\n京都市竹田幼稚園\n京都市藤森竹田児童館",null,65,0,0,0,0,0,24,null,65,"竹田学区・民生児童委員会\n京都市改進保育所\n京都市竹田幼稚園\n京都市藤森竹田児童館",null,"人形劇ファミリー・ひみちゃたいさんに依頼し、実施。子どもたちも楽しそうに見ていた。今年は申込方法をQRコードを使用し、アンケートもQRコードで行なった。申込数は多かったが、アンケートの回収率はあまり伸びなかった。"]
[null,null,null,"8ヶ月健診見守り",2,"藤城児童館\n深草児童館\nうずらの里児童館\nふかくさ輝っず児童館\n藤森竹田児童館",null,34,0,0,0,0,0,32,39,73,"藤城児童館\n深草児童館\nうずらの里児童館\nふかくさ輝っず児童館\n藤森竹田児童館",null,"深草区役所に行き、乳幼児親子に向けて児童館の事業を広報した。"]
[null,null,null,"なかよしマーケット会議",3,"住吉児童館\n深草児童館\n伏見板橋児童館\nうずらの里児童館\n藤森竹田児童館",null,0,0,0,0,0,0,15,null,15,"深草児童館\n住吉児童館\n伏見板橋児童館\n藤森竹田児童館\nうずらの里児童館",null,"なかよしマーケット当日に向けて、各館の準備や当日までのスケジュールなどについて確認した。"]
[null,null,null,"児童館連絡協議会",2,"京都市藤森中学校\n京都市藤ノ森小学校\n京都市竹田小学校\n京都市伏見いきいき市民活動センター\n京都市改進保育所\nＮＰＯ人権ネットワークウェーブ２１",null,0,0,0,0,0,0,9,null,9,"京都市藤森中学校・京都市藤ノ森小学校\n京都市竹田小学校・京都市伏見いきいき市民活動センター\n京都市改進保育所・ＮＰＯ人権ネットワークウェーブ２１",null,"各施設で情報交換をしつつ地域の子どもたちの課題について話し合いをした。\n"]
[null,null,null,"笹のお届け（城南ホーム）",1,"城南ホーム",null,0,0,0,0,3,null,0,null,3,"社会福祉法人清和園城南ホーム",null,"城南ホームさんに、施設の方々がこれからも元気で過ごしていただけるような気持ちを込めて、笹をお届けしお手紙を持参した。"]
[null,null,null,"おはなしワンダーランド",1,"NPO人権ネットワークウェーブ21",null,0,0,9,0,4,0,6,null,13,"京都市藤森竹田児童館",null,"NPO法人ウェーブ２１の方々に、子どもたちに向けた読み聞かせを行っていただいた。"]
[null,null,null,"みんなおいでいっしょにあそぼ会議",3,"みんなおいでいっしょにあそぼ\n実行委員会",null,0,0,0,0,0,0,13,23,23,"みんなおいでいっしょにあそぼ実行委員会",null,"当日は民生委員さんなどのスタッフ全員で協力して行った。児童館３館に分けて受付をおこない、人数把握や当日の名簿の確認などもスムーズだった。アンケートの声からも、低年齢の子どもと一緒に生演奏が聴ける内容にとても喜ばれる声が多かった。"]
[null,null,null,"みんなおいでいっしょにあそぼ",1,"みんなおいでいっしょにあそぼ\n実行委員会",null,47,0,0,0,0,0,50,null,{"$f":"SUM(H19:O19)","v":97},"みんなおいでいっしょにあそぼ実行委員会",null,"年１回乳幼児親子対象にクリスマスコンサートを実施。子どもだけでなく、大人も楽しんでもらえる内容で、好評をいただくことができた。"]
[null,null,null,"田中宮ふれあいまつり",1,"田中宮市営住宅自治会",null,0,0,11,0,4,0,0,null,15,"NPO法人京都子どもセンター\n（財）京都地域創造基金\n京都市伏見いきいき市民活動センター",null,"地域の方のお誘いを受け、当日出席の子どもたちを引率してお祭りに参加させていただいた。"]
[null,null,null,"利用者アンケート",7,"藤森竹田児童館",null,0,0,44,0,13,0,0,null,57,"京都市藤森竹田児童館",null,"児童館を利用している方を対象にアンケートを実施した。"]
[null,null,null,"読み聞かせタイム",1,"京都市藤森竹田児童館",null,0,0,0,0,0,0,0,null,null,"京都市藤森竹田児童館",null,"あそぼうdayに来られている乳幼児親子さんに向けて読み聞かせを実施している。"]
[null,null,null,"石見神楽引率",1,"京都市藤森竹田児童\n竹田学区・民生児童委員会\n",null,0,1,10,0,3,0,0,null,14,"京都市藤森竹田児童\n竹田学区・民生児童委員会\n京都市竹田小学校",null,"児童館を利用している児童全員を連れて竹田小学校で行われる石見神楽を見学した。"]
[null,null,null,"おもしろアート",1,"NPO人権ネットワークウェーブ21",null,0,0,12,1,3,0,0,null,16,"京都市藤森竹田児童館",null,"ウェーブ21さんに来ていただいて、子どもたちに遊びを通してアートに触れてもらった。"]
[null,null,null,"合　　　　計",{"$f":"SUM(E7:E24)","v":50},"－",null,{"$f":"SUM(H7:H24)","v":276},1,97,1,34,0,null,{"$f":"SUM(O7:O24)","v":130},{"$f":"SUM(P7:P24)","v":613}]
[]
[null,null,null,"活　　動　　内　　容",null,null,null,"活　　動　　人　　数",null,null,null,"成　　　果　　　と　　　課　　　題"]
[null,null,null,null,null,null,null,"中高生","大学生","大　人","合　計"]
[null,null,null,"夏休み学習会",null,null,null,null,null,9,{"$f":"SUM(H29:J29)","v":9},"夏休みの宿題が思うように進んでいない子どもたちや、勉強について困っている子どもたちに向けて学習会を実施。いきいき市民活動センターの一室で子どもたちには集中して学習に取り組んでもらった。"]
[null,null,null,null,null,null,null,null,null,null,{"$f":"SUM(H30:J30)","v":0}]
[null,null,null,null,null,null,null,null,null,null,0]
[null,null,null,null,null,null,"合　計",{"$f":"SUM(H29:H31)","v":0},{"$f":"SUM(I29:I31)","v":0},{"$f":"SUM(J29:J31)","v":9},{"$f":"SUM(K29:K31)","v":9}]
[]
[null,null,null,"連　　携　　団　　体　　等","連　　　　　携　　　　　内　　　　　容",null,null,null,null,null,null,null,"成　　　果　　　と　　　課　　　題"]
[]
[null,null,null,"竹田学区・民生児童委員会、竹田地域女性会\n竹田更生保護女性会\n社会福祉法人清和園城南ホーム\n京都市改進保育所・京都市藤森竹田児童館","ネットワーク会議",null,null,null,null,null,null,null,"ほっとサロン終了後、その日の取り組みの反省、親子の様子の共有、次回以降の取組の検討を行なった。終了後にもらった保護者からのアンケートを共有し、次回以降や、来年に向けての活動にも活かせるように話し合いを行った。"]
[]
[]
[null,null,"(3)地域との連携を\n　促進する活動","うずらの里児童館・住吉児童館\n深草児童館・伏見板橋児童館\n京都市藤森竹田児童館","なかよしマーケット会議",null,null,null,null,null,null,null,"館長先生にも会議に入っていただき、会議の方向性を確認したのち、主催館の館長先生にも入っていただきながら、なかよしマーケット当日までの流れや段取りを確認していった。"]
[]
[null,null,null,"みんなおいでいっしょにあそぼ\n実行委員会","みんなおいでいっしょにあそぼ会議",null,null,null,null,null,null,null,"「みんなおいでいっしょにあそぼ」当日までの準備や、ポスター作製や受付の割り振り。当日の配置などの段取りや分担などを話し合い、連携団体と共有するための準備を行った。"]
[]
[null,null,null,"京都市改進保育所・京都市竹田幼稚園\n京都市藤森竹田児童館","ぐんぐんひろば会議",null,null,null,null,null,null,null,"竹田学区の子育て支援が連携し豊かな体験活動を通して子どもの健全育成や子育て支援を図り、保護者同士の交流の場を設け子育て家庭の見守りをする。という目的に沿った活動となるよう、会議を重ね、子育て家庭に対しての場を提供することを目指して話し合いを行った。"]
[]
[null,null,null,"京都市藤森中学校・京都市藤ノ森小学校\n京都市竹田小学校・京都市伏見いきいき市民活動センター\n京都市改進保育所・ＮＰＯ人権ネットワークウェーブ２１","児童館連絡協議会",null,null,null,null,null,null,null,"各施設で情報交換をしつつ地域の子どもたちの課題について話し合いをした。\n今後も継続して児童館連絡協議会を続けていきたい。"]
[]
[null,null,null,"京都市改進保育所","学童入所児童の引継ぎ",null,null,null,null,null,null,null,"改進保育所から児童館の学童クラブに入会される家庭についての引継ぎを行わせていただき、４月までに環境を整えておくための情報をまとめさせていただいた。"]

{"sheet":"児童館事業年間活動報告書10-４","index":3,"n_rows":67,"n_cols":13,"rows_kept":67,"cut":false,"hidden":false,"merged":[[3,0,68,0],[3,1,16,1],[3,3,4,5],[3,6,4,7],[3,8,4,9],[19,6,23,7],[19,8,23,10],[31,3,32,3],[44,6,48,6],[44,7,48,8],[44,9,48,10],[66,7,66,8],[66,9,66,10],[3,12,4,12],[5,3,16,4],[5,10,16,11],[5,12,16,12],[17,1,68,1],[17,3,18,5],[17,6,18,7],[17,8,18,10],[17,11,18,12],[19,3,23,4],[3,10,4,11],[19,11,23,12],[31,4,32,4],[31,5,32,6],[31,7,32,8],[31,9,32,10],[31,11,32,12],[44,11,48,12],[33,11,38,12],[39,3,43,3],[39,4,43,4],[39,6,43,6],[39,7,43,8],[39,9,43,10],[39,11,43,12],[33,3,38,3],[33,4,38,4],[33,6,38,6],[33,7,38,8],[33,9,38,10],[44,3,48,3],[44,4,48,4],[53,11,57,12],[49,3,52,3],[49,4,52,4],[49,6,52,6],[49,7,52,8],[49,9,52,10],[49,11,52,12],[53,3,57,3],[53,4,57,4],[53,6,57,6],[53,7,57,8],[53,9,57,10],[62,11,65,12],[58,3,61,3],[58,4,61,4],[58,6,61,6],[58,7,61,8],[58,9,61,10],[58,11,61,12],[62,3,65,3],[62,4,65,4],[62,6,65,6],[62,7,65,8],[62,9,65,10],[66,11,66,12],[67,3,68,3],[67,4,68,4],[67,6,68,6],[67,7,68,8],[67,9,68,10],[67,11,68,12]]}
[null,null,null,null,null,null,null,null,null,null,null,null,"＜様式１０－４＞"]
[null,null,null,null,"令和７年（２０２５）年度　　　　　　　児　童　館　事　業　年　間　活　動　報　告　書　　　　（京都市藤森竹田）児　童　館"]
[]
["地　　　域　　　福　　　祉　　　促　　　進　　　機　　　能","基　本　活　動",null,"組織名称",null,null,"構成団体・個人",null,"会議／取組頻度",null,"議題／取組内容",null,"成果と課題"]
[]
[null,null,null,"\n\n児童館連絡協議会",null,null,"改進保育所",null,null,null,"藤森竹田児童館を取り巻く地域に住む乳幼児、または児童、生徒の健全育成を目指して、教育実践を担っている各種団体が集い、情報交換を行うとともに、子どもの実態把握と課題解決に向けた具体的取組や教育支援の在り方について協議をすすめる。",null,"色々な施設とその機能や立場の中で子どもを捉え、情報交換することはとても有効であり、今後も継続して実施していきたい。"]
[null,null,null,null,null,null,"藤ノ森小学校"]
[null,null,null,null,null,null,"竹田小学校"]
[null,null,"(4)児童館を支える地域",null,null,null,"藤森中学校"]
[null,null,"   組織作り",null,null,null,"ＮＰＯ人権ネットワークウェーブ２１"]
[null,null,null,null,null,null,"藤森竹田児童館"]
[null,null,null,null,null,null,"伏見いきいき市民活動センター"]
[]
[]
[]
[]
[]
[null,"推　進　活　動",null,"会場提供・備品貸出等",null,null,"使　用　目　的",null,"提供先（団体・機関等）",null,null,"成果と課題"]
[]
[null,null,null,"大型絵本・スマートボール",null,null,"おまつりや行事に使用",null,"近隣児童館・保育所・小中学校",null,null,"おまつりや行事の際にスマートボール台や大型絵本を活用してもらい、役立ててもらうことが出来ている。"]
[]
[null,null,"(5)地域への施設提供"]
[]
[]
[]
[]
[]
[]
[]
[]
[]
[null,null,null,"調査名","調査目的","調査対象",null,"調査主体",null,"調査方法",null,"成果と課題"]
[]
[null,null,null,"児童館利用者共通アンケート","利用しやすい児童館をめざしていくなかで、利用者のニーズを新式するため",null,"児童館全利用者","京都市社会福祉協議会",null,"選択式と記述式を含む\nアンケート用紙への記入",null,"アンケートの結果から、子どもたちは楽しく遊んでいるということが読み取れた。防災訓練は毎月実施しているが、保護者の視点からはわかりにくいため、毎月実施前には玄関の前に防災訓練実施のお知らせを掲示した。"]
[]
[]
[]
[]
[]
[null,null,null,"幼児クラブ『きらきら』","１年を振り返っての利用の感想と今後への要望について",null,"今年度の乳幼児クラブ\n『きらきら』登録者全員","京都市藤森竹田児童館",null,"選択式と記述式を含む\nアンケート用紙への記入",null,"人数は少なかったものの、「少ないからこそしっかりと子どもを見てもらえていると感じられてよかった」という意見があった。取り組み自体も「楽しかった」「普段できないことができた」という意見をいただくことができた。保育所に入られる年齢が早くなってきたからこそ、今後の乳幼児クラブの運営方法も考えていく必要がある。"]
[]
[]
[]
[]
[null,null,null,"すくすくひろば","①保健師さんのお話についての\n　事前アンケート\n②１年を振り返っての利用の感想\n　と今後への要望について",null,"今年度のすくすくひろば\nの登録の乳幼児親子全員","京都市藤森竹田児童館",null,"①アンケート用紙への記入\n②QRコードよりアンケート\n　フォームへの回答",null,"去年にいただいた利用者アンケートをもとに今年の計画を立て、実施した。その中で、外部の方を講師として及びするなど、内容を充実させ、保護者にも喜んでもらうこと阿できた。"]
[]
[]
[]
[null,null,"(6)地域調査活動"]
[null,null,null,"みんなおいでいっしょにあそぼ","行事の参加者に対して、感想と今後への要望について",null,"取組に参加していただいた方全員","みんなおいでいっしょにあそぼ実行委員会",null,"選択式と記述式を含む\nアンケート用紙への記入",null,"今年度は定員に少し余裕があったが、たくさんの参加があり、音楽の生演奏に対する子育て親子のニーズを感じることができた。アンケートからも、『生の演奏を聴けてよかった』『大人も子どもも楽しむことができた』『毎年楽しみにしています』といった喜びの声を聞くことができた。運営面では昨年の反省を受け、マイクの音量等にも気をつけた。"]
[]
[]
[]
[null,null,null,"ぐんぐんひろば","行事の参加者に対して、感想と今後への要望について",null,"取組に参加していただいた方全員","竹田学区・民生児童委員会\n京都市改進保育所\n京都市竹田幼稚園\n京都市藤森竹田児童館",null,"選択式と記述式を含む\nQRコードよりアンケートフォームへの回答・アンケート用紙への記入",null,"申込はQRコードで行なうことでいつでも・どこでも申し込みができるため、多くの方が申込をしてくださった。申込時に入力して下さったメールアドレスに送信することを周知したが、アンケートの回収率は伸びなかった。来年度以降はアンケートの回収方法にも工夫をしていきたい。"]
[]
[]
[]
[]
[null,null,null,"ほっとサロン","行事の参加者に対して、感想と今後への要望について",null,"取組に参加していただいた方全員","竹田学区・民生児童委員会\n京都市改進保育所\n京都市藤森竹田児童館",null,"選択式と記述式を含む\nアンケート用紙への記入",null,"今年度から活動終了後に来月の申し込みを開始することにした。内容にかかわらず一定の参加者を集めることができた。終了後にアンケートをお願いしているが、感想をいただくことが少ないので、今年度は文言の見直しを行うことにした。"]
[]
[]
[]
[null,null,null,"親子交流事業\n「おやつマーケット＆カフェ」","行事の参加者に対して、感想と今後への要望について",null,"取組に参加していただいた方全員","京都市藤森竹田児童館",null,"選択式と記述式を含む\nアンケート用紙への記入",null,"スライドショーで子どもたちの普段の様子を上映することで、会話のきっかけになった。避難サコッシュについても「簡単で作り方も書いてあったので作りやすかった」という意見をいただけた。今後も“親子で楽しめる”ように実施していきたい。"]
[]
[]
[]
[null,null,null,"ハロウィンを楽しもう","行事の参加者に対して、感想と今後への要望について",null,"取組に参加していただいた方全員","京都市藤森竹田児童館",null,"選択式と記述式を含む\nアンケート用紙への記入",null,"毎年楽しみにしていただいているハロウィンは、今年も近隣の施設に協力していただいて、子どもたちと職員も仮装をして練り歩き、お菓子をもらいに歩いた。児童館に戻ってからは、２階遊戯室にお菓子を並べておやつパーティーを実施し、みんなでおやつを食べながらハロウィンを楽しんだ。"]

{"sheet":"児童館事業年間活動報告書10-５雛型","index":4,"n_rows":34,"n_cols":7,"rows_kept":34,"cut":false,"hidden":false,"merged":[[3,6,4,6],[3,0,4,0],[5,0,33,0],[3,1,4,1],[3,2,4,2],[3,3,4,3],[3,4,4,4],[3,5,4,5],[5,1,10,1],[5,2,10,2],[5,3,10,3],[5,4,10,4],[5,5,10,5],[11,1,16,1],[11,2,16,2],[11,3,16,3],[5,6,10,6],[11,6,16,6],[17,6,22,6],[23,6,28,6],[23,1,28,1],[23,2,28,2],[23,3,28,3],[23,4,28,4],[23,5,28,5],[11,4,16,4],[11,5,16,5],[17,1,22,1],[17,2,22,2],[17,3,22,3],[17,4,22,4],[17,5,22,5]]}
[null,null,null,null,null,null,"＜様式１０－５＞"]
[null,null,"令和７年（２０２５）年度　　　　児　童　館　事　業　年　間　活　動　報　告　書　　　　京都市藤森竹田児童館"]
[]
[null,"広報物の種類","発行頻度","広報対象","広報方法","広報内容","成果と課題"]
[]
["広　　　　　　報　　　　　　活　　　　　　動","児童館ニュース","12回\n（毎月1回）","地域全体","配布・配信・掲示","月末に、翌月の行事予定をお知らせする。","児童館ニュースは、広く地域住民に見ていただけるよう掲示。小学校・近隣の施設などにも掲示をお願いしている。月はじめには地域におたよりの配布とポスターの掲示をお願いするようにした。"]
[]
[]
[]
[]
[]
[null,"ちっちゃいこだより","12回\n（毎月1回）\n","子育て家庭","配布・配信・掲示","月末に、翌月の行事予定をお知らせする。","幼児クラブ『きらきら』の参加者の方やすくすくひろばの参加者の方に配信。また、あそぼうdayに来られた方、児童館を見に来られた方にも案内ができるように毎月ラックに設置。登録制のクラブの予定の他に、乳幼児さん向けの行事の広報を一緒に行うことができた。また、クラブに参加されていない乳幼児親子さんにもクラブの活動内容を知っていただくことができた。"]
[]
[]
[]
[]
[]
[null,"ハロウィンを楽しもうチラシ・ポスター","年1回","地域全体","配布・掲示","児童館の毎年恒例の季節行事。\nチラシ・ポスターを作成。\n学童クラブの子どもたちにとっては、児童館の行事の中で一番期待度の高い行事となりつつある。","児童館の恒例の季節行事、年々申込者が増え、楽しみにしてくれているイベント。保護者の方や地域の乳幼児親子の参加も増えている。近隣の保育所やいきいきセンター、体育館にもご協力いただき地域との繋がりを感じられる行事としても大切に継続していきたいと考えている。"]
[]
[]
[]
[]
[]
[null,"ほっとサロンのチラシ・ポスター","11回\n（毎月1回）\n※夏季長期休み\nのみ休止","子育て家庭","配布・掲示","その日の取組終了時に翌月の内容と翌々月の大まかな内容を確定し、25日頃までにチラシとポスターを作成。\n主任児童委員の方より、民生会議にて地域への貼り出しもお願いしていただいている。","活動終了後の会議の中で、来月と再来月の内容まで確認をしていただくことで、実行委員の方々とも意思疎通ができ、前もって内容の確認や修正を行うことができた。"]
[]
[]
[]
[]
[]
[null,"みんなおいでいっしょにあそぼチラシ・ポスター","年1回","子育て家庭","配布・掲示","地域子育てステーション事業として開始した事業。実行委員会を持ち、イベントの企画とチラシ・ポスターの作成や依頼・受付などを分担し12月にイベントを実施している。","伏見区の子育て支援が充実したものになるよう、児童館・保育園・保育所・地域の民生児童委員の方々や社協・子どもはぐくみ室ととも連携を取り実施している。定員を設けて3つの児童館で事前申込を行っている。わかりやすい実施場所と幅広い広報で、たくさんの乳幼児親子に参加をしてもらっている。"]
[null,"ぐんぐんひろばのチラシ・ポスター","年１回","子育て家庭","配布・掲示","竹田学区の子育て家庭支援活動の一環として、今年度から始まった取組み。\n民生会議、保育所、幼稚園でも配布をし、たくさんの方に参加していただけるようお知らせをする。","1ヶ月前には広報できるように作成した。児童館や幼稚園、保育所にポスターを設置し、保護者さんの目につくようにした。ポスターに申込のQRコードを掲載したため、広報をしてそのまま申し込んでくださる保護者さんもいた。"]
[null,"ふじたけサマーフェスのチラシ・ポスター","年1回","地域全体","配布・掲示","小学校の夏季休業中に実施。一日を通して児童館でお祭りを楽しんだ。","「かんばい」からスタートして「たこせん」を食べたり、「ヨーヨー釣り」を楽しみ、最後は全員で「フェスミッケ」をしたり、児童館全体を使ってみんなで楽しんだ。"]
[null,"おもいっきりあそぼうdayのチラシ・ポスター","年1回","子育て家庭","配布・掲示・ホームページ掲載","体育館を借りて、毎週火・金で行っているあそぼうdayを大規模に実施。事前受付制で行った。","乳幼児クラブや子育てサロンで広報を行ない、参加者を集めた。児童館の玄関や遊戯室にポスターを掲示した。"]
[null,"ふじたけフェス2025のチラシ・ポスター","年1回","地域全体","配布・掲示","児童館の年に一度のおまつり。\nチラシとポスターを作成。\nウェーブ２１の方々にも協力をお願いした。","和音さんの演奏で開始。うまい棒を使ったビンゴを楽しんでもらいながら、最後はビンゴ数の多い人からお菓子を選んでもらい、開始から終了まで楽しんでもらった。"]

{"sheet":"ファイル一覧","index":5,"n_rows":2,"n_cols":2,"rows_kept":2,"cut":false,"hidden":false,"merged":[]}
["ファイル名","最終更新日時"]
["2026_05_28_14_28_54_令和7年度事業実績報告　児童館事業.xlsm","2026-05-28T14:24:55"]